[Event "*** Titled Tuesday Blitz"]
[Site "Chess.com"]
[Date "2021.02.16"]
[Round "2"]
[White "Bacyanide"]
[Black "AlexNovitz"]
[Result "1-0"]
[WhiteElo "2432"]
[BlackElo "2188"]
[TimeControl "180+1"]
[EndTime "10:18:56 PST"]
[Termination "Bacyanide won by resignation"]

1. d4 {[%clk 0:03:00.9]} 1... Nf6 {[%clk 0:02:59.8]} 2. Nf3 {[%clk 0:03:00.8]}
2... d5 {[%clk 0:02:59.5]} 3. c4 {[%clk 0:02:59.8]} 3... e6 {[%clk 0:02:59.2]}
4. g3 {[%clk 0:02:59.9]} 4... Bb4+ {[%clk 0:02:58.2]} 5. Nbd2 {[%clk 0:02:58.6]}
5... O-O {[%clk 0:02:57.5]} 6. Bg2 {[%clk 0:02:59.1]} 6... b6 {[%clk 0:02:58]}
7. O-O {[%clk 0:03:00]} 7... Bb7 {[%clk 0:02:57.9]} 8. b3 {[%clk 0:02:57.6]}
8... c5 {[%clk 0:02:54.5]} 9. Bb2 {[%clk 0:02:56.6]} 9... dxc4 {[%clk
0:02:47.1]} 10. Nxc4 {[%clk 0:02:55.8]} 10... cxd4 {[%clk 0:02:46.5]} 11. Nxd4
{[%clk 0:02:47.8]} 11... Bxg2 {[%clk 0:02:44.9]} 12. Kxg2 {[%clk 0:02:48.7]}
12... Bc5 {[%clk 0:02:40]} 13. Nb5 {[%clk 0:02:46.4]} 13... Qc8 {[%clk
0:02:29.5]} 14. Bxf6 {[%clk 0:02:45.1]} 14... gxf6 {[%clk 0:02:28.7]} 15. e4
{[%clk 0:02:28.7]} 15... f5 {[%clk 0:02:25.6]} 16. Nbd6 {[%clk 0:01:40.5]} 16...
Qc6 {[%clk 0:02:22.5]} 17. Kg1 {[%clk 0:01:24.7]} 17... Rd8 {[%clk 0:02:14.5]}
18. exf5 {[%clk 0:01:08.7]} 18... Bxd6 {[%clk 0:02:11.5]} 19. Qg4+ {[%clk
0:00:56]} 19... Kh8 {[%clk 0:02:06.4]} 20. Rad1 {[%clk 0:00:53.7]} 20... Be7
{[%clk 0:01:58.1]} 21. Ne5 {[%clk 0:00:44.6]} 21... Qe8 {[%clk 0:01:52.9]} 22.
fxe6 {[%clk 0:00:37]} 22... fxe6 {[%clk 0:01:41.6]} 23. Qxe6 {[%clk 0:00:27.9]}
23... Na6 {[%clk 0:01:38.9]} 24. Nf7+ {[%clk 0:00:15.4]} 24... Kg7 {[%clk
0:01:37.5]} 25. Nxd8 {[%clk 0:00:14.4]} 25... Rxd8 {[%clk 0:01:38]} 26. Rxd8
{[%clk 0:00:10.9]} 26... Qxd8 {[%clk 0:01:37.5]} 27. Re1 {[%clk 0:00:10.4]}
27... Bf6 {[%clk 0:01:37.6]} 28. Qg4+ {[%clk 0:00:09.4]} 28... Kf7 {[%clk
0:01:30.4]} 29. Rd1 {[%clk 0:00:10.3]} 29... Qe8 {[%clk 0:01:07.5]} 30. Qc4+
{[%clk 0:00:09.4]} 30... Kg7 {[%clk 0:01:05.9]} 31. Qxa6 {[%clk 0:00:10.3]}
31... Qe7 {[%clk 0:01:02.6]} 32. Qd3 {[%clk 0:00:10]} 32... Kh8 {[%clk
0:00:58.1]} 33. Qd7 {[%clk 0:00:09.4]} 33... Qe2 {[%clk 0:00:53]} 34. Qc8+
{[%clk 0:00:08.7]} 34... Kg7 {[%clk 0:00:52.3]} 35. Qd7+ {[%clk 0:00:07.9]}
35... Be7 {[%clk 0:00:49.8]} 36. Qd2 {[%clk 0:00:08.8]} 36... Qe6 {[%clk
0:00:46.7]} 37. Re1 {[%clk 0:00:08.7]} 37... Qf6 {[%clk 0:00:45]} 38. Qd7 {[%clk
0:00:08.9]} 38... Kf8 {[%clk 0:00:44.1]} 39. Qxe7+ {[%clk 0:00:09.2]} 39... Qxe7
{[%clk 0:00:45]} 40. Rxe7 {[%clk 0:00:09.7]} 40... Kxe7 {[%clk 0:00:45.9]} 41.
f4 {[%clk 0:00:10.4]} 41... Ke6 {[%clk 0:00:46.8]} 42. Kf2 {[%clk 0:00:11.2]}
42... Kf5 {[%clk 0:00:47.6]} 43. Kf3 {[%clk 0:00:11.9]} 43... h5 {[%clk
0:00:47.9]} 44. h3 {[%clk 0:00:12.8]} 44... a6 {[%clk 0:00:46.9]} 45. g4+ {[%clk
0:00:13.7]} 45... hxg4+ {[%clk 0:00:46.5]} 46. hxg4+ {[%clk 0:00:14.6]} 46...
Kf6 {[%clk 0:00:47.4]} 47. f5 {[%clk 0:00:15.1]} 47... Kg5 {[%clk 0:00:47.8]}
48. Kg3 {[%clk 0:00:15.4]} 48... b5 {[%clk 0:00:48.1]} 49. b4 {[%clk 0:00:15.9]}
1-0

[Event "*** Titled Tuesday Blitz"]
[Site "Chess.com"]
[Date "2021.02.16"]
[Round "2"]
[White "TST2014"]
[Black "hansen"]
[Result "0-1"]
[WhiteElo "2578"]
[BlackElo "2926"]
[TimeControl "180+1"]
[EndTime "10:18:57 PST"]
[Termination "hansen won on time"]

1. d4 {[%clk 0:03:00.9]} 1... Nf6 {[%clk 0:03:00.2]} 2. c4 {[%clk 0:03:00.2]}
2... e6 {[%clk 0:02:53.5]} 3. Nf3 {[%clk 0:02:59]} 3... b6 {[%clk 0:02:47.3]} 4.
a3 {[%clk 0:02:58.3]} 4... Bb7 {[%clk 0:02:46.5]} 5. Nc3 {[%clk 0:02:58]} 5...
Ne4 {[%clk 0:02:46.5]} 6. Nxe4 {[%clk 0:02:56.9]} 6... Bxe4 {[%clk 0:02:47.4]}
7. Nd2 {[%clk 0:02:57.2]} 7... Bb7 {[%clk 0:02:46.3]} 8. e4 {[%clk 0:02:56.3]}
8... Nc6 {[%clk 0:02:35.1]} 9. Nf3 {[%clk 0:02:47]} 9... d6 {[%clk 0:02:35]} 10.
d5 {[%clk 0:02:29.5]} 10... Ne5 {[%clk 0:02:30.5]} 11. Nxe5 {[%clk 0:02:26.6]}
11... dxe5 {[%clk 0:02:29.4]} 12. Qa4+ {[%clk 0:02:09.8]} 12... Qd7 {[%clk
0:02:24.8]} 13. Qxd7+ {[%clk 0:02:08.8]} 13... Kxd7 {[%clk 0:02:25.7]} 14. Be3
{[%clk 0:02:07.1]} 14... c6 {[%clk 0:02:22.2]} 15. dxe6+ {[%clk 0:01:51.9]}
15... Kxe6 {[%clk 0:02:21.2]} 16. c5 {[%clk 0:01:51.7]} 16... Bxc5 {[%clk
0:02:20.1]} 17. Bxc5 {[%clk 0:01:51.6]} 17... bxc5 {[%clk 0:02:19.3]} 18. Rc1
{[%clk 0:01:52.2]} 18... a5 {[%clk 0:01:59.1]} 19. Rxc5 {[%clk 0:01:34.3]} 19...
Rhd8 {[%clk 0:01:58.5]} 20. f3 {[%clk 0:01:14]} 20... Rd4 {[%clk 0:01:57.3]} 21.
Be2 {[%clk 0:01:08.9]} 21... Kd6 {[%clk 0:01:54]} 22. Rc3 {[%clk 0:00:58.8]}
22... c5 {[%clk 0:01:50.9]} 23. Bc4 {[%clk 0:00:57.6]} 23... f6 {[%clk
0:01:42.2]} 24. Rd3 {[%clk 0:00:33.3]} 24... Ba6 {[%clk 0:01:39]} 25. Bxa6
{[%clk 0:00:32]} 25... Rxa6 {[%clk 0:01:38.6]} 26. Kd2 {[%clk 0:00:30.4]} 26...
Rb6 {[%clk 0:01:32.7]} 27. Rxd4+ {[%clk 0:00:25.8]} 27... exd4 {[%clk 0:01:31]}
28. Kc2 {[%clk 0:00:20.5]} 28... c4 {[%clk 0:01:31.2]} 29. Rd1 {[%clk
0:00:19.8]} 29... Kc5 {[%clk 0:01:31.3]} 30. h4 {[%clk 0:00:18.1]} 30... h5
{[%clk 0:01:30.6]} 31. g4 {[%clk 0:00:17.3]} 31... hxg4 {[%clk 0:01:28]} 32.
fxg4 {[%clk 0:00:18.2]} 32... Rb3 {[%clk 0:01:28]} 33. g5 {[%clk 0:00:17.4]}
33... fxg5 {[%clk 0:01:25.6]} 34. hxg5 {[%clk 0:00:17.7]} 34... Rg3 {[%clk
0:01:26.2]} 35. Rf1 {[%clk 0:00:16.3]} 35... Rg2+ {[%clk 0:01:26.6]} 36. Kc1
{[%clk 0:00:16]} 36... Rxg5 {[%clk 0:01:26.4]} 37. Rf8 {[%clk 0:00:14.3]} 37...
d3 {[%clk 0:01:26.5]} 38. Rd8 {[%clk 0:00:13.1]} 38... a4 {[%clk 0:01:24]} 39.
Kd2 {[%clk 0:00:12.5]} 39... Rg2+ {[%clk 0:01:23.4]} 40. Kc1 {[%clk 0:00:12.9]}
40... Rc2+ {[%clk 0:01:22.2]} 41. Kb1 {[%clk 0:00:12.9]} 41... Re2 {[%clk
0:01:21.1]} 42. Rd5+ {[%clk 0:00:11.7]} 42... Kc6 {[%clk 0:01:21.2]} 43. Rd4
{[%clk 0:00:07.1]} 43... Re1+ {[%clk 0:01:19.3]} 44. Ka2 {[%clk 0:00:07.3]}
44... Kb5 {[%clk 0:01:19.8]} 45. Rd5+ {[%clk 0:00:07.4]} 45... Kb6 {[%clk
0:01:20.2]} 46. Rd4 {[%clk 0:00:07.5]} 46... g5 {[%clk 0:01:19.5]} 47. Rd6+
{[%clk 0:00:04.6]} 47... Kc5 {[%clk 0:01:00.2]} 48. Rd5+ {[%clk 0:00:04.4]}
48... Kc6 {[%clk 0:01:00.7]} 49. Rd4 {[%clk 0:00:04.6]} 49... Rc1 {[%clk
0:01:01.2]} 50. e5 {[%clk 0:00:02.8]} 50... Kc5 {[%clk 0:00:59.8]} 51. Rd8
{[%clk 0:00:02.1]} 51... Re1 {[%clk 0:00:59.5]} 0-1

[Event "*** Titled Tuesday Blitz"]
[Site "Chess.com"]
[Date "2021.02.16"]
[Round "2"]
[White "esteban062000"]
[Black "MagzyPotato"]
[Result "0-1"]
[WhiteElo "2146"]
[BlackElo "2424"]
[TimeControl "180+1"]
[EndTime "10:18:58 PST"]
[Termination "MagzyPotato won by resignation"]

1. Nf3 {[%clk 0:03:00.9]} 1... Nf6 {[%clk 0:03:00.1]} 2. c4 {[%clk 0:03:00.7]}
2... e6 {[%clk 0:03:00.1]} 3. Nc3 {[%clk 0:02:59]} 3... d5 {[%clk 0:03:00.4]} 4.
cxd5 {[%clk 0:02:58.1]} 4... exd5 {[%clk 0:03:00.4]} 5. g3 {[%clk 0:02:56.8]}
5... c5 {[%clk 0:02:59.9]} 6. Bg2 {[%clk 0:02:55.7]} 6... d4 {[%clk 0:02:59]} 7.
Nb1 {[%clk 0:02:55.7]} 7... Nc6 {[%clk 0:02:58.2]} 8. O-O {[%clk 0:02:55.5]}
8... Be7 {[%clk 0:02:55.2]} 9. d3 {[%clk 0:02:55.7]} 9... O-O {[%clk 0:02:54.7]}
10. Nbd2 {[%clk 0:02:54.8]} 10... Be6 {[%clk 0:02:52]} 11. Nb3 {[%clk
0:02:50.7]} 11... Qd7 {[%clk 0:02:45.9]} 12. Bf4 {[%clk 0:02:36.9]} 12... Nd5
{[%clk 0:02:39.6]} 13. Bd2 {[%clk 0:02:26.1]} 13... Bh3 {[%clk 0:02:38.7]} 14.
Rc1 {[%clk 0:02:25.4]} 14... b6 {[%clk 0:02:35.9]} 15. Bg5 {[%clk 0:01:53.8]}
15... f6 {[%clk 0:02:26.3]} 16. Bd2 {[%clk 0:01:50.6]} 16... Rae8 {[%clk
0:02:25.1]} 17. Re1 {[%clk 0:01:42.7]} 17... Bxg2 {[%clk 0:02:20.6]} 18. Kxg2
{[%clk 0:01:42.8]} 18... Bd6 {[%clk 0:02:21]} 19. e4 {[%clk 0:01:24.5]} 19...
dxe3 {[%clk 0:02:14.8]} 20. fxe3 {[%clk 0:01:25.4]} 20... Ndb4 {[%clk
0:01:59.8]} 21. Bxb4 {[%clk 0:01:19.6]} 21... Nxb4 {[%clk 0:01:59.1]} 22. a3
{[%clk 0:01:19.7]} 22... Nc6 {[%clk 0:01:49.6]} 23. d4 {[%clk 0:01:16.4]} 23...
cxd4 {[%clk 0:01:47.7]} 24. Nbxd4 {[%clk 0:01:16.3]} 24... Ne5 {[%clk
0:01:45.1]} 25. Qb3+ {[%clk 0:01:10.4]} 25... Kh8 {[%clk 0:01:44.1]} 26. Nxe5
{[%clk 0:00:44.8]} 26... fxe5 {[%clk 0:01:39.5]} 27. Nf3 {[%clk 0:00:41.3]}
27... e4 {[%clk 0:01:36.4]} 28. Nd4 {[%clk 0:00:39.2]} 28... Bc5 {[%clk
0:01:31.3]} 29. Rcd1 {[%clk 0:00:35.8]} 29... Qg4 {[%clk 0:01:25.5]} 30. Qc2
{[%clk 0:00:24.5]} 30... Rf6 {[%clk 0:01:12.2]} 31. Qe2 {[%clk 0:00:24.2]} 31...
Qg6 {[%clk 0:01:07.3]} 32. b4 {[%clk 0:00:21.5]} 32... Bxd4 {[%clk 0:01:03.7]}
33. Rxd4 {[%clk 0:00:22.4]} 33... Ref8 {[%clk 0:01:03.6]} 34. Rd2 {[%clk
0:00:20.9]} 34... h5 {[%clk 0:01:00.4]} 35. Qd1 {[%clk 0:00:20.7]} 35... h4
{[%clk 0:00:59.4]} 36. Rde2 {[%clk 0:00:15.6]} 36... h3+ {[%clk 0:00:52.8]} 37.
Kg1 {[%clk 0:00:15.4]} 37... Rf3 {[%clk 0:00:51.2]} 38. Qd7 {[%clk 0:00:14.6]}
38... R8f5 {[%clk 0:00:42.3]} 39. Qd8+ {[%clk 0:00:14.3]} 39... Kh7 {[%clk
0:00:40.4]} 40. Qh4+ {[%clk 0:00:14.8]} 40... Rh5 {[%clk 0:00:36.9]} 41. Qe7
{[%clk 0:00:14.6]} 41... Qf5 {[%clk 0:00:34.2]} 42. Qxa7 {[%clk 0:00:13.2]}
42... Rh6 {[%clk 0:00:33.5]} 43. Qb8 {[%clk 0:00:12.4]} 43... Rf6 {[%clk
0:00:33.4]} 44. Qe8 {[%clk 0:00:12]} 44... Rf1+ {[%clk 0:00:33.4]} 0-1

[Event "*** Titled Tuesday Blitz"]
[Site "Chess.com"]
[Date "2021.02.16"]
[Round "2"]
[White "annacramling"]
[Black "Gusarov91"]
[Result "0-1"]
[WhiteElo "2117"]
[BlackElo "2408"]
[TimeControl "180+1"]
[EndTime "10:18:58 PST"]
[Termination "Gusarov91 won by resignation"]

1. d4 {[%clk 0:03:00.9]} 1... Nf6 {[%clk 0:02:53.1]} 2. c4 {[%clk 0:03:01.8]}
2... g6 {[%clk 0:02:51.3]} 3. Nc3 {[%clk 0:02:58.3]} 3... d5 {[%clk 0:02:51.8]}
4. cxd5 {[%clk 0:02:58.1]} 4... Nxd5 {[%clk 0:02:50.3]} 5. e4 {[%clk 0:02:58.5]}
5... Nb6 {[%clk 0:02:51]} 6. h3 {[%clk 0:02:53]} 6... Bg7 {[%clk 0:02:50.8]} 7.
Nf3 {[%clk 0:02:53.4]} 7... O-O {[%clk 0:02:51]} 8. Be3 {[%clk 0:02:52.1]} 8...
Nc6 {[%clk 0:02:50.8]} 9. Be2 {[%clk 0:02:48.5]} 9... f5 {[%clk 0:02:50.7]} 10.
e5 {[%clk 0:02:42.2]} 10... f4 {[%clk 0:02:50.7]} 11. Bc1 {[%clk 0:02:39.2]}
11... Be6 {[%clk 0:02:39]} 12. O-O {[%clk 0:02:36.6]} 12... h6 {[%clk
0:02:38.2]} 13. Ne4 {[%clk 0:02:19.7]} 13... Bd5 {[%clk 0:02:22.9]} 14. Nc5
{[%clk 0:01:36.7]} 14... Qc8 {[%clk 0:02:22.7]} 15. b3 {[%clk 0:01:16.7]} 15...
g5 {[%clk 0:02:21.9]} 16. Bb2 {[%clk 0:01:13.8]} 16... Nd7 {[%clk 0:02:16.7]}
17. Rb1 {[%clk 0:00:50.7]} 17... Nxc5 {[%clk 0:02:14.2]} 18. dxc5 {[%clk
0:00:49.7]} 18... Be4 {[%clk 0:02:08]} 19. Bd3 {[%clk 0:00:46.9]} 19... Rd8
{[%clk 0:02:04.1]} 20. Bc4+ {[%clk 0:00:33.8]} 20... e6 {[%clk 0:02:03.4]} 21.
Qe2 {[%clk 0:00:28.2]} 21... Bxb1 {[%clk 0:02:00.4]} 22. Rxb1 {[%clk 0:00:29.1]}
22... Qd7 {[%clk 0:01:58.5]} 23. Qe4 {[%clk 0:00:28.3]} 23... Qf7 {[%clk
0:01:54.3]} 24. Nh2 {[%clk 0:00:23.5]} 24... Na5 {[%clk 0:01:50]} 25. Bd3 {[%clk
0:00:21.9]} 25... Qf5 {[%clk 0:01:36]} 26. Qxf5 {[%clk 0:00:11.5]} 26... exf5
{[%clk 0:01:36.9]} 27. Bxf5 {[%clk 0:00:11.7]} 27... Nc6 {[%clk 0:01:34.6]} 28.
Ng4 {[%clk 0:00:08.1]} 28... Nd4 {[%clk 0:01:33.1]} 29. Be4 {[%clk 0:00:04.4]}
29... c6 {[%clk 0:01:24]} 30. Kf1 {[%clk 0:00:04.4]} 30... h5 {[%clk 0:01:23.6]}
31. Nf6+ {[%clk 0:00:04.1]} 31... Bxf6 {[%clk 0:01:23.9]} 32. exf6 {[%clk
0:00:05]} 32... Kf7 {[%clk 0:01:24.3]} 33. Rd1 {[%clk 0:00:05.1]} 33... Ne6
{[%clk 0:01:21.9]} 34. Ke2 {[%clk 0:00:05.2]} 34... Rxd1 {[%clk 0:01:19.6]} 35.
Kxd1 {[%clk 0:00:06.1]} 35... Rd8+ {[%clk 0:01:19.8]} 36. Ke2 {[%clk 0:00:07]}
36... Nxc5 {[%clk 0:01:20.4]} 37. Bc2 {[%clk 0:00:06.7]} 37... Ne6 {[%clk
0:01:16]} 38. b4 {[%clk 0:00:07.6]} 38... Nd4+ {[%clk 0:01:15.9]} 39. Kd1 {[%clk
0:00:06.9]} 39... Nxc2+ {[%clk 0:01:15.6]} 40. Kxc2 {[%clk 0:00:07.8]} 40... Rd5
{[%clk 0:01:13.3]} 41. a3 {[%clk 0:00:07.3]} 41... g4 {[%clk 0:01:13.3]} 42.
hxg4 {[%clk 0:00:07.3]} 42... hxg4 {[%clk 0:01:14.2]} 43. Kb3 {[%clk 0:00:07.2]}
43... b5 {[%clk 0:01:14]} 44. a4 {[%clk 0:00:06.8]} 44... bxa4+ {[%clk
0:01:13.6]} 45. Kxa4 {[%clk 0:00:07.1]} 45... Rd2 {[%clk 0:01:14.1]} 46. Kb3
{[%clk 0:00:04.4]} 46... Rxf2 {[%clk 0:01:14.1]} 47. Bd4 {[%clk 0:00:04]} 47...
Rxg2 {[%clk 0:01:13.7]} 48. Bxa7 {[%clk 0:00:04.2]} 48... Kxf6 {[%clk 0:01:14]}
49. Bd4+ {[%clk 0:00:03.9]} 49... Ke6 {[%clk 0:01:14.2]} 50. Kc4 {[%clk
0:00:04.8]} 50... Kd7 {[%clk 0:01:14.6]} 51. Kc5 {[%clk 0:00:04.8]} 51... f3
{[%clk 0:01:15.1]} 52. b5 {[%clk 0:00:03.5]} 52... Rc2+ {[%clk 0:01:14.8]} 53.
Kb6 {[%clk 0:00:03.4]} 53... cxb5 {[%clk 0:01:14.4]} 54. Kxb5 {[%clk 0:00:03.8]}
54... g3 {[%clk 0:01:14.6]} 55. Be3 {[%clk 0:00:03.2]} 55... f2 {[%clk
0:01:14.4]} 56. Bf4 {[%clk 0:00:02.9]} 56... g2 {[%clk 0:01:13.9]} 0-1

[Event "*** Titled Tuesday Blitz"]
[Site "Chess.com"]
[Date "2021.02.16"]
[Round "2"]
[White "Eliwood44"]
[Black "seorobert1971"]
[Result "0-1"]
[WhiteElo "2474"]
[BlackElo "2713"]
[TimeControl "180+1"]
[EndTime "10:19:02 PST"]
[Termination "seorobert1971 won by resignation"]

1. d4 {[%clk 0:03:00.9]} 1... c6 {[%clk 0:03:00.9]} 2. Nf3 {[%clk 0:02:52.8]}
2... d5 {[%clk 0:03:01.8]} 3. c4 {[%clk 0:02:52.9]} 3... Nf6 {[%clk 0:03:02.2]}
4. g3 {[%clk 0:02:53.3]} 4... Bf5 {[%clk 0:03:01.5]} 5. Bg2 {[%clk 0:02:52.7]}
5... h6 {[%clk 0:03:01.1]} 6. O-O {[%clk 0:02:51.1]} 6... e6 {[%clk 0:03:00.9]}
7. Qb3 {[%clk 0:02:51.6]} 7... Qb6 {[%clk 0:03:00.2]} 8. Nc3 {[%clk 0:02:52]}
8... Nbd7 {[%clk 0:02:58.6]} 9. c5 {[%clk 0:02:52.2]} 9... Qa6 {[%clk
0:02:57.5]} 10. Re1 {[%clk 0:02:46.4]} 10... b6 {[%clk 0:02:57.1]} 11. e4 {[%clk
0:02:25.9]} 11... Nxe4 {[%clk 0:02:51.3]} 12. Nxe4 {[%clk 0:02:15.1]} 12... Bxe4
{[%clk 0:02:49.3]} 13. Bf1 {[%clk 0:02:15.3]} 13... Qc8 {[%clk 0:02:45.8]} 14.
Nd2 {[%clk 0:02:13.8]} 14... Bg6 {[%clk 0:02:44.4]} 15. cxb6 {[%clk 0:02:04.4]}
15... axb6 {[%clk 0:02:44.3]} 16. Nf3 {[%clk 0:02:02.6]} 16... Bd6 {[%clk
0:02:42.8]} 17. Ne5 {[%clk 0:02:01.5]} 17... Nxe5 {[%clk 0:02:41.3]} 18. dxe5
{[%clk 0:02:01.6]} 18... Bc5 {[%clk 0:02:40.7]} 19. Be3 {[%clk 0:01:59.5]} 19...
O-O {[%clk 0:02:38]} 20. Rac1 {[%clk 0:01:57.2]} 20... Bxe3 {[%clk 0:02:37.7]}
21. Rxe3 {[%clk 0:01:57.4]} 21... Qb7 {[%clk 0:02:34.8]} 22. Rec3 {[%clk
0:01:53.7]} 22... Rfc8 {[%clk 0:02:34.1]} 23. a3 {[%clk 0:01:52.7]} 23... Be4
{[%clk 0:02:24]} 24. Qb4 {[%clk 0:01:45.3]} 24... Rab8 {[%clk 0:02:07.3]} 25.
Qa4 {[%clk 0:01:32.9]} 25... c5 {[%clk 0:01:58.1]} 26. Ba6 {[%clk 0:01:30]}
26... Qa7 {[%clk 0:01:56.2]} 27. Qb5 {[%clk 0:01:26.4]} 27... Rd8 {[%clk
0:01:53.2]} 28. b4 {[%clk 0:01:24.1]} 28... Ra8 {[%clk 0:01:48.3]} 29. bxc5
{[%clk 0:01:24]} 29... Qxa6 {[%clk 0:01:48]} 30. Qxb6 {[%clk 0:01:21.5]} 30...
Rdb8 {[%clk 0:01:43.7]} 31. Qc7 {[%clk 0:01:12.1]} 31... Qc8 {[%clk 0:01:34.3]}
32. Qd6 {[%clk 0:01:11.1]} 32... Ra7 {[%clk 0:01:26.5]} 33. c6 {[%clk 0:01:09]}
33... Qc7 {[%clk 0:01:25.6]} 34. Qc5 {[%clk 0:01:05.8]} 34... Rd8 {[%clk
0:01:21.9]} 35. Rb3 {[%clk 0:01:00.3]} 35... d4 {[%clk 0:01:13.5]} 36. Rb4
{[%clk 0:00:45.2]} 36... Ra5 {[%clk 0:01:09.4]} 37. Qc4 {[%clk 0:00:28.5]} 37...
Ra7 {[%clk 0:00:55.2]} 38. Qc5 {[%clk 0:00:22.7]} 38... Rd5 {[%clk 0:00:54.5]}
39. Qxa7 {[%clk 0:00:16.4]} 39... Qxa7 {[%clk 0:00:54]} 40. c7 {[%clk
0:00:16.8]} 40... Qxa3 {[%clk 0:00:52.9]} 41. c8=Q+ {[%clk 0:00:16.6]} 41... Kh7
{[%clk 0:00:53]} 42. Rb8 {[%clk 0:00:16.7]} 42... Qf3 {[%clk 0:00:49.6]} 43.
Qg8+ {[%clk 0:00:08.9]} 43... Kg6 {[%clk 0:00:49.4]} 44. Kf1 {[%clk 0:00:07.6]}
44... d3 {[%clk 0:00:46.7]} 45. Qxf7+ {[%clk 0:00:05.6]} 45... Kxf7 {[%clk
0:00:45.7]} 46. Rc7+ {[%clk 0:00:05.9]} 46... Kg6 {[%clk 0:00:45.6]} 0-1

[Event "*** Titled Tuesday Blitz"]
[Site "Chess.com"]
[Date "2021.02.16"]
[Round "2"]
[White "RamyresCoelho"]
[Black "TokChess"]
[Result "0-1"]
[WhiteElo "2073"]
[BlackElo "2388"]
[TimeControl "180+1"]
[EndTime "10:19:02 PST"]
[Termination "TokChess won by checkmate"]

1. e4 {[%clk 0:02:56.4]} 1... c5 {[%clk 0:03:00.9]} 2. Nf3 {[%clk 0:02:56.2]}
2... d6 {[%clk 0:03:01.5]} 3. d4 {[%clk 0:02:56.6]} 3... cxd4 {[%clk 0:03:02.4]}
4. Nxd4 {[%clk 0:02:57.5]} 4... Nf6 {[%clk 0:03:02.7]} 5. Nc3 {[%clk 0:02:58]}
5... g6 {[%clk 0:03:03]} 6. f4 {[%clk 0:02:58]} 6... Nbd7 {[%clk 0:03:01.6]} 7.
Be3 {[%clk 0:02:51.8]} 7... Bg7 {[%clk 0:03:01.5]} 8. Bd3 {[%clk 0:02:50.6]}
8... O-O {[%clk 0:02:58.1]} 9. h3 {[%clk 0:02:50.1]} 9... a6 {[%clk 0:02:49.8]}
10. Qe2 {[%clk 0:02:48.6]} 10... Qc7 {[%clk 0:02:49.5]} 11. O-O-O {[%clk
0:02:48.8]} 11... b5 {[%clk 0:02:49.5]} 12. g4 {[%clk 0:02:49.2]} 12... b4
{[%clk 0:02:44.6]} 13. Nd5 {[%clk 0:02:47.1]} 13... Nxd5 {[%clk 0:02:40.1]} 14.
exd5 {[%clk 0:02:48]} 14... Bb7 {[%clk 0:02:37.6]} 15. Be4 {[%clk 0:02:41.8]}
15... Nb6 {[%clk 0:02:25]} 16. Nc6 {[%clk 0:02:37.1]} 16... Bxc6 {[%clk
0:02:21.7]} 17. dxc6 {[%clk 0:02:38]} 17... e6 {[%clk 0:02:17.2]} 18. Bxb6
{[%clk 0:02:36.8]} 18... Qxb6 {[%clk 0:02:16.9]} 19. Rxd6 {[%clk 0:02:36.8]}
19... Rfd8 {[%clk 0:01:58.2]} 20. Rhd1 {[%clk 0:02:31.8]} 20... Rxd6 {[%clk
0:01:49.7]} 21. Rxd6 {[%clk 0:02:32.7]} 21... Qc7 {[%clk 0:01:49.8]} 22. Qd2
{[%clk 0:02:23.7]} 22... Rc8 {[%clk 0:00:58.5]} 23. Rd7 {[%clk 0:02:17.8]} 23...
Qb6 {[%clk 0:00:55.6]} 24. Kb1 {[%clk 0:01:02]} 24... a5 {[%clk 0:00:55.3]} 25.
c7 {[%clk 0:00:48.9]} 25... Bf8 {[%clk 0:00:31.9]} 26. f5 {[%clk 0:00:38.5]}
26... exf5 {[%clk 0:00:29.2]} 27. gxf5 {[%clk 0:00:38.5]} 27... Rxc7 {[%clk
0:00:25.1]} 28. Rxc7 {[%clk 0:00:35.5]} 28... Qxc7 {[%clk 0:00:24.8]} 29. fxg6
{[%clk 0:00:35.9]} 29... hxg6 {[%clk 0:00:25.7]} 30. Qg2 {[%clk 0:00:29.5]}
30... Qe5 {[%clk 0:00:24.1]} 31. Kc1 {[%clk 0:00:18.4]} 31... Bh6+ {[%clk
0:00:23.2]} 32. Kb1 {[%clk 0:00:14.9]} 32... Bg7 {[%clk 0:00:23.5]} 33. c4
{[%clk 0:00:06.5]} 33... bxc3 {[%clk 0:00:24.4]} 34. bxc3 {[%clk 0:00:05.9]}
34... Qxc3 {[%clk 0:00:24.2]} 35. Qc2 {[%clk 0:00:04.1]} 35... Qa1# {[%clk
0:00:23.7]} 0-1